Cogmind - Beta 11.1 @@@ ROGUE MODE // 2022.12.20 @ 21:01:08 Player: Richard Blunt Result: Destroyed by G-34 Mercenary with Small Laser Performance ------------- Evolutions (0) 0 Regions Visited (1) 200 Robots Destroyed (23) 115 Value Destroyed (484) 484 Prototype IDs (0) 0 Alien Tech Used (0) 0 Bonus (0) 0 TOTAL SCORE: 799 Bonus ------- None Cogmind --------- Core Integrity 0/250 Matter 255/300 Energy 125/125 System Corruption 0% Temperature Cool (63) Movement Rolling (140) Ox4 Location -10/Materials Parts ------- > --- POWER (1) -------- Light Ion Engine > --- PROPULSION (2) --- Light Treads Wheel > --- UTILITY (2) ------ High-capacity Storage Unit > --- WEAPON (2) ------- Small Laser Grenade Launcher > --- INVENTORY (20) --- Light Ion Engine Light Treads Light Treads Compact Wheel Compact Wheel Small Storage Unit High-capacity Storage Unit Small Matter Pod (50) Grenade Launcher Grenade Launcher Mining Laser Peak State ------------ > --- POWER ------------ Light Ion Engine > --- PROPULSION ------- Light Treads Wheel > --- UTILITY ---------- High-capacity Storage Unit Visual Processing Unit > --- WEAPON ----------- Medium Laser Light Assault Rifle > --- INVENTORY -------- Light Treads Light Treads Light Treads Compact Wheel Compact Wheel Small Storage Unit High-capacity Storage Unit Small Laser Grenade Launcher Grenade Launcher Grenade Launcher Mining Laser [Rating: 9] Favorites ----------- Power Light Ion Engine Engine Light Ion Engine Propulsion Light Treads Treads Light Treads Wheel Wheel Utility High-capacity Storage Unit Device Seismic Detector Storage High-capacity Storage Unit Processor Visual Processing Unit Protection Light Armor Plating Weapon Medium Laser Energy Gun Medium Laser Ballistic Gun Light Assault Rifle Launcher Grenade Launcher Build | -11 -10 ------- Run | Scr Mat Slots Evolved . | . . Power . | . . Propulsion . | . . Utility . | . . Weapon . | . . Parts Attached 23 | 7 16 Power 4 | 1 3 Engine 4 | 1 3 Core . | . . Reactor . | . . Propulsion 7 | 2 5 Treads 4 | 1 3 Leg . | . . Wheel 3 | 1 2 Hover . | . . Flight . | . . Utility 5 | 2 3 Device 1 | 1 . Storage 2 | 1 1 Processor 1 | . 1 Hackware . | . . Protection 1 | . 1 Artifact . | . . Weapon 7 | 2 5 Energy Gun 3 | 1 2 Energy Cannon . | . . Ballistic Gun 2 | 1 1 Ballistic Cannon . | . . Launcher 2 | . 2 Special Weapon . | . . Impact Weapon . | . . Slashing Weapon . | . . Piercing Weapon . | . . Special Melee Weapon . | . . Unidentified Prototypes . | . . Parts Lost 10 | . 10 Power 2 | . 2 Propulsion 3 | . 3 Utility 2 | . 2 Weapon 3 | . 3 Highest Loss Streak 7 | . 7 To Critical Strikes . | . . Average Slot Usage (%) 97 | . 97 Engine 13 | . 13 Treads 14 | . 14 Wheel 12 | . 12 Device 6 | . 6 Storage 14 | . 14 Processor 6 | . 6 Energy Gun 14 | . 14 Ballistic Gun 12 | . 12 Naked Turns . | . . Heaviest Build 48 | 12 48 Greatest Support 40 | 20 40 Greatest Overweight (x) 4 | 1 4 Average Overweight (x) 3 | . 3 Largest Inventory Capacity 20 | 8 20 Average Capacity 17 | 7 18 Most Carried 18 | 7 18 Average Carried 12 | 3 13 Final Capacity 20 | 8 20 Final Carried 11 | 7 11 Class Distribution -------------------- 100% | Mutant Dominant Class ---------------- Mutant | -10/Materials Resources | -11 -10 ----------- Run | Scr Mat Matter Collected 474 | 281 193 Remotely . | . . Salvage Created 795 | 148 647 Parts 42 | 10 32 Haulers Intercepted 1 | . 1 Recyclers Shooed 1 | . 1 Parts Field Recycled . | . . Retrieved Matter . | . . Parts Self-Destructed . | . . Prevented . | . . Kills | -11 -10 ------- Run | Scr Mat Combat Hostiles Destroyed 14 | . 14 Guns 8 | . 8 AOE 6 | . 6 Classes Destroyed 6 | 2 4 Worker 2 | . 2 Tunneler 4 | 4 . Hauler 1 | . 1 Recycler 2 | 1 1 Swarmer 3 | . 3 Grunt 11 | . 11 Best Kill Streak 5 | 5 4 Combat Bots Only 4 | . 4 Max Kills in Single Turn 3 | 1 3 Gunslinging . | . . Exploded 3 | . 3 Melee . | . . Uniques/NPCs Destroyed . | . . Combat | -11 -10 -------- Run | Scr Mat Damage Taken 1174 | . 1174 Core 250 | . 250 Absorbed by Shields . | . . Core Remaining (%) 100 | 100 . Volleys Fired 73 | 11 62 Largest 2 | 2 2 Hottest 80 | 70 80 Shots Fired 135 | 18 117 Gun 131 | 18 113 Cannon . | . . Launcher 4 | . 4 Special . | . . Kinetic 58 | 11 47 Thermal 73 | 7 66 Explosive 4 | . 4 Electromagnetic . | . . Robot Hit Streak 11 | 7 11 Robot Miss Streak 4 | 1 4 Penetration Max . | . . Secondary Targets 1 | . 1 Max Gunslinging Chain 1 | . 1 Shots Hit Robots 94 | 12 82 Core Hits 44 | 7 37 Critical Kills . | . . Critical Parts Destroyed . | . . Critical Strikes 3 | . 3 Burn 3 | . 3 Melee Attacks . | . . Impact . | . . Slashing . | . . Piercing . | . . Sneak Attacks . | . . Combat Hostiles . | . . Follow-up Attacks . | . . Damage Inflicted 1351 | 121 1230 Guns 1001 | 121 880 Cannons . | . . Explosions 339 | . 339 Melee . | . . Ramming 11 | . 11 Kinetic 326 | 56 270 Thermal 675 | 65 610 Explosive 339 | . 339 Electromagnetic . | . . Impact . | . . Slashing . | . . Piercing . | . . Highest Corruption . | . . Average Corruption . | . . Corruption Purged . | . . Corruption Blocked . | . . Overload Shots . | . . Overflow Damage 5 | . 5 Projectiles . | . . Explosions 5 | . 5 Melee . | . . Knockbacks . | . . Impact . | . . Kinetic . | . . Secondary . | . . Self-Inflicted Damage 26 | . 26 Shots 1 | . 1 Rammed 4 | . 4 Targets Rammed 4 | . 4 Kicked . | . . Crushed . | . . Highest Temperature 350 | 70 350 Average Temperature 99 | 34 106 Received Heat Transfer 663 | . 663 Effects 2 | . 2 Energy Bleed 1 | . 1 Interference 1 | . 1 Siege Activations . | . . Robots Corrupted . | . . Combat Hostiles . | . . Parts Fried . | . . Impact Corruptions . | . . Robots Melted . | . . Combat Hostiles . | . . Parts Melted 3 | . 3 Heat Transferred 2054 | 185 1869 Parts Sabotaged . | . . Parts Stolen . | . . Parts Stripped . | . . Power Chain Reactions . | . . Missiles Intercepted . | . . Alert | -11 -10 ------- Run | Scr Mat Peak Influence 310 | 25 310 Initial 16 | . 16 Average 96 | 9 104 Maximum Alert Level 1 | . 1 Low Security (%) 83 | 100 82 Level 1 16 | . 17 Level 2 . | . . Level 3 . | . . Level 4 . | . . Level 5 . | . . High Security . | . . Max Security . | . . Squads Dispatched 6 | . 6 Investigation 4 | . 4 Extermination . | . . Reinforcement 2 | . 2 Assault . | . . Garrison . | . . Intercept . | . . Searches Triggered . | . . Construction Impeded . | . . Haulers Reinforced . | . . Active Scanning Responses . | . . Cargo Convoy Interrupts . | . . Stealth | -11 -10 --------- Run | Scr Mat Distress Signals 1 | . 1 Communications Jammed . | . . Distress Signals . | . . Times Spotted 22 | . 22 Peak Tracking Total 6 | . 6 Tactical Retreats 2 | . 2 Traps | -11 -10 ------- Run | Scr Mat Traps Triggered 1 | . 1 Indirectly . | . . Trap Hack Attempts . | . . Triggered . | . . Disarmed . | . . Reprogrammed . | . . Reused . | . . Traps Extracted . | . . Installed . | . . Triggered . | . . Machines | -11 -10 ---------- Run | Scr Mat Machines Disabled 1 | . 1 Max in Single Turn 1 | . 1 Machines Sabotaged . | . . Garrisons Compromised . | . . Overloaded Fab Kills . | . . Hacking | -11 -10 --------- Run | Scr Mat Machines Accessed 4 | . 4 Terminals 2 | . 2 Fabricators . | . . Repair Stations . | . . Recycling Units 2 | . 2 Scanalyzers . | . . Garrison Access . | . . Total Hacks 7 | . 7 Successful 2 | . 2 Failed 5 | . 5 Catastrophic 2 | . 2 Database Lockouts . | . . Manual 7 | . 7 Terminals 3 | . 3 Fabricators . | . . Repair Stations . | . . Recycling Units 4 | . 4 Scanalyzers . | . . Garrison Access . | . . Terminal Hacks . | . . Fabricator Hacks . | . . Repair Station Hacks . | . . Recycling Unit Hacks . | . . Scanalyzer . | . . Garrison Access Hacks . | . . Unauthorized Hacks 2 | . 2 Terminals . | . . Fabricators . | . . Repair Stations . | . . Recycling Units 2 | . 2 Tunnel 2 | . 2 Scanalyzers . | . . Garrison Access . | . . Data Cores Recovered . | . . Used . | . . Hacking Detections 2 | . 2 Full Trace Events 1 | . 1 Feedback Events . | . . Feedback Blocked . | . . Robot Schematics Acquired . | . . Robots Built . | . . Authchips . | . . Time . | . . Total Robot Build Rating . | . . Part Schematics Acquired . | . . Parts Built . | . . Authchips . | . . Time . | . . Total Part Build Rating . | . . Parts Repaired . | . . Time . | . . Parts Recycled . | . . Recycled Matter . | . . Retrieved Matter . | . . Retrieved Components . | . . Parts Scanalyzed . | . . Part Schematics Acquired . | . . Parts Damaged . | . . Bothacking | -11 -10 ------------ Run | Scr Mat Used RIF Installer . | . . Robots Hacked . | . . Non-combat . | . . Combat . | . . Robot Hacks Applied . | . . Relay Couplers Released . | . . Fabnet Peak Effective % . | . . Robots Rewired . | . . Allies Hacked . | . . Hacks Repelled . | . . Allies | -11 -10 -------- Run | Scr Mat Total Allies . | . . Largest Group . | . . Highest-Rated Group . | . . Highest-Rated Ally . | . . Total Orders . | . . Ally Attacks . | . . Total Damage . | . . Kills . | . . Allies Corrupted . | . . Allies Melted . | . . Intel | -11 -10 ------- Run | Scr Mat Robot Analysis Total . | . . Derelict Logs Recovered . | . . Drone Launches . | . . Drone Recoveries . | . . Exploration | -11 -10 ------------- Run | Scr Mat Turns Passed 1030 | 89 941 Spaces Moved 564 | 48 516 Core 1 | 1 . Treads 18 | 2 16 Legs . | . . Wheels 545 | 45 500 Hover . | . . Flight . | . . Fastest Speed 50 | 50 95 Average Speed 135 | 93 138 Slowest Speed 240 | 160 240 Overloaded Moves . | . . Propulsion Burnouts . | . . Robots Hopped . | . . Cave-ins Triggered . | . . Exploration Rate (%) 37 | 4 71 Regions Visited 1 Branch Regions . Pre-discovered Areas 2 | . 2 Known Exits Taken . | . . Unknown Exits Taken 1 | 1 . Scrap Searched . | . . Spaces Dug . | . . Terrain Destroyed 23 | . 23 Melee . | . . Projectile . | . . AOE 23 | . 23 Terrain Rammed . | . . Walls Destroyed . | . . Machines Disabled . | . . Actions | -11 -10 --------- Run | Scr Mat Total 698 | 72 626 Wait 14 | . 14 Move 563 | 47 516 Hop . | . . Pick Up 20 | 7 13 Fast Attach 7 | 7 . Attach 10 | . 10 Detach 1 | . 1 Swap 6 | . 6 Drop . | . . Fire 73 | 11 62 Melee . | . . Ram . | . . Kick . | . . Crush 4 | . 4 Escape Stasis . | . . Rewire . | . . Trap . | . . Miscellaneous . | . . Route ------- -11/Scrapyard -10/Materials (discovered 2 exits: [*Mat] / [*Min]) History --------- Turn | Location | Event 13 | -11/Scrapyard | Discovered new exit (range 15) 90 | -11/Scrapyard | Entered Materials 312 | -10/Materials | Build established: Mutant 391 | -10/Materials | Discovered new exit (range 11) 560 | -10/Materials | Discovered new exit (range 7) 974 | -10/Materials | Core integrity fell below 50% 988 | -10/Materials | Core integrity fell below 20% 1031 | -10/Materials | Destroyed by G-34 Mercenary with Small Laser Last Messages --------------- 00965_ Switching to secondary target: G-34 Mercenary. 00969_ Lgt. Ion Engine destroyed. 00969_ Lgt. Treads destroyed. 00970_ Overheating: System interference. 00970_ Visual Processing Unit temporarily disabled. 00977_ Discarded Visual Processing Unit. 00983_ G-34 Mercenary heat short circuits Aluminum Leg. 00983_ Sml. Laser destroyed. 00987_ G-34 Mercenary overheating. 00988_ Slammed into G-34 Mercenary. 00992_ Overheating: Energy bleed (-20). 00993_ Slammed into G-34 Mercenary. 00995_ Acquired 43 matter. 00998_ Slammed into O-16 Technician. 00999_ Acquired 48 matter. 01009_ Lgt. Armor Plating destroyed. 01011_ ALERT: Hostiles spotted, dispatching reinforcements to Terminal M006. 01024_ Destroyed Datajack. 01027_ G-34 Mercenary destroyed. Map ----- +----------------------------------------------------+ | | | | | | | | | | | | | | | | | | | | | | | | | | | | | ?????????????????????????????????????????????????? | | ##??????##########???????????????????????????????? | | ??????# #???????????????????????????????? | | ?????#""" #######?????????????????????????? | | ""?????#""" ##!!!!##????????????????????????? | | """????#""" #! !#????????????????????????? | | """?####""" | #! !#????????????????????????? | | """ # #""" #?# ######???? #?????????????? | | # # #?# # # ### +?????????????? | | + / *["T" #?# g #?????????????? | | # # ![=!% #?# #?????????????? | | ###### #####/####?# @ ????????? | | ????# #### #????# #####+???????????????? | | ????# T" %###### ####????????????????????? | | ????# " */ """ =! ????????????????????????? | | ????# ##+### " %g ????????????????????????? | | ###### ## #o *%* ????????????????????????? | | """ # ## # [% [%=#????????????????????????? | | "Y" + ## # = #????????????????????????? | | # ## # #????????????????????????? | | # + #! # #??????????????#####?????? | | """ #####"" ####### ########################## | | """ #???#"T #?????# =% % | | """ #???#"" #?????# | | ######???# #??#### = | | ?????????######??# ####+######+## | | ?????????????????# + # # | | ?????????????????#+###+############## """ # # | | ?????????????????# #????????# """ # # | | ?????????????????# """ """ #????????# """ # # | | ?????????????????# """ """ #????????# # # | | ?????????????????# """ """ #????????# """ # # | | ?????????????????# #????????# """ ###+#### | | ?????????????????# #????????# """ #?# #??? | | ?????????????????# #????????# #?# #??? | | ?????????????????# #????????# #?# #??? | +----------------------------------------------------+ Best States ------------- Heat Dissipation 25 Energy Generation 10 Energy Capacity 125 Matter Stores 300 Matter Capacity 300 Sight Range 18 Terrain Scan Density 10 Armor Coverage 150 Evasion (%) 44 Recoil Reduction 2 Item Schematics ----------------- None Robot Schematics ------------------ None Fabricated ------------ Nothing Alien Tech Used ----------------- None Achievements -------------- None Challenges ------------ None Game ------ Seed MakeshiftGammaBrace Manual? 0 Play Time 00:15:10 Cumulative 116.8 hours Start 2022.12.11 @ 13:20:22 End 2022.12.20 @ 21:01:08 Sessions 2 Manual Loads 0 Difficulty Rogue Special Mode None Game No. 36 Rogue 36 Adventurer 0 Explorer 0 Win Type - Total 1 Types 1/0/0/0/0/0/0/0/0 Lore% 45 Gallery% 51 Achievement% 44 Wizard Run 0 Options --------- ASCII 0 Keyboard 1 Movement Vi Keybinds 0 Fullscreen 1 Font 18/SmallcapsGlow Map View 76x50 Tactical HUD 1 Map Filters NONE Filters NONE Steam 1 RUN: 172ffb1a-d67e-43dd-9e0b-9a850ff8b711